bitfinex/quotes_SOLUSD_20251201
["timestamp","ask_amount","ask_price","bid_price","bid_amount"]
[1764549415332,8.41368667,129.59,129.52,30.70275712]
[1764549415632,8.41368667,129.59,129.55,8.43898604]
[1764549415859,7.71630263,129.6,129.55,8.43898604]
[1764549415860,8.41368667,129.6,129.55,8.43898604]
[1764549416135,16.308864,129.62,129.56,0.67]
[1764549416318,8.41368667,129.62,129.56,9.08368667]
[1764549416507,16.308864,129.64,129.56,9.08368667]
[1764549416716,8.41368667,129.62,129.57,0.67]
[1764549416910,24.0225563,129.64,129.58,3.68]
[1764549417236,8.41368667,129.6,129.58,3.68]
[1764549420019,8.41368667,129.55,129.5,3.68]
[1764549420213,8.41368667,129.54,129.5,3.68]
[1764549420628,8.41368667,129.52,129.51,3.68]
[1764549420831,16.708864,129.57,129.51,3.68]
[1764549420832,16.308864,129.57,129.51,3.68]
[1764549421018,65.98135945,129.61,129.46,27.03484643]
[1764549421019,8.41368667,129.52,129.46,27.03484643]
[1764549421217,8.41368667,129.49,129.47,3.68]
[1764549421419,8.41368667,129.48,129.43,16.68]
[1764549421750,8.41368667,129.44,129.43,16.68]
[1764549422045,8.41368667,129.49,129.44,0.67]
[1764549422212,8.41368667,129.48,129.43,28.08600056]
[1764549422538,27.0276193,129.5,129.44,3.68]
[1764549423036,27.0276193,129.5,129.45,3.68]
[1764549423369,8.41368667,129.48,129.46,3.68]
[1764549423514,27.02309412,129.52,129.46,3.68]
[1764549423712,8.41368667,129.51,129.46,11.40414272]
[1764549423916,16.13450198,129.52,129.46,19.81782939]
[1764549424109,8.41368667,129.49,129.47,3.68]
[1764549424328,8.41368667,129.48,129.47,3.68]
[1764549424817,8.41368667,129.48,129.43,17.35]
[1764549425138,43.3317176,129.52,129.44,3.68]
[1764549425139,8.41368667,129.45,129.44,3.68]
[1764549425320,8.41368667,129.45,129.39,0.1]
[1764549425525,10.81368666,129.5,129.39,0.1]
[1764549425526,16.308864,129.48,129.4,4.35]
[1764549425718,16.308864,129.48,129.4,20.49166194]
[1764549425917,16.308864,129.48,129.4,0.67]
[1764549425918,8.41368667,129.44,129.4,0.67]
[1764549426121,8.41368667,129.44,129.41,3.68]
[1764549426317,8.41368667,129.45,129.41,3.68]
[1764549426531,8.41368667,129.45,129.41,4.35]
[1764549426735,8.41368667,129.44,129.41,3.68]
[1764549427035,8.41368667,129.45,129.41,3.68]
[1764549427245,19.30293153,129.52,129.42,9.08368667]
[1764549427448,8.41368667,129.48,129.42,0.67]
[1764549427748,8.41368667,129.48,129.43,12.07613939]
[1764549428249,38.59557262,129.55,129.43,12.07613939]
[1764549428250,0.4,129.58,129.47,8.41368667]
[1764549428419,16.308864,129.56,129.44,0.67]
[1764549428620,8.41368667,129.52,129.45,0.67]
[1764549428852,8.41368667,129.53,129.47,8.41368667]
[1764549429235,8.41368667,129.54,129.48,9.08368667]
[1764549429542,27.01368156,129.57,129.49,8.41368667]
[1764549429543,8.41368667,129.55,129.49,8.41368667]
[1764549429745,7.71903017,129.55,129.5,16.13569439]
[1764549430042,8.41368667,129.56,129.51,0.67]
[1764549430224,8.41368667,129.56,129.52,3.68]
[1764549430617,8.41368667,129.54,129.52,3.68]
[1764549431221,7.7166448,129.59,129.53,9.08368667]
[1764549431423,0.4,129.63,129.54,8.41368667]
[1764549431627,94.27523551,129.71,129.58,16.13085821]
[1764549431933,8.41368667,129.64,129.59,3.68]
[1764549432249,8.41368667,129.65,129.6,12.09368667]
[1764549432552,8.41368667,129.66,129.61,8.41368667]
[1764549432732,8.41368667,129.66,129.6,12.09368667]
[1764549433047,8.41368667,129.64,129.59,8.41368667]
[1764549433233,8.41368667,129.65,129.6,3.68]
[1764549433439,8.41368667,129.65,129.6,4.35]
[1764549433620,8.41368667,129.66,129.61,0.67]
[1764549433825,8.41368667,129.65,129.61,0.67]
[1764549434039,8.41368667,129.62,129.57,9.08368667]
[1764549434234,8.41368667,129.61,129.58,3.68]
[1764549434749,8.41368667,129.59,129.54,0.67]
[1764549434941,8.41368667,129.59,129.55,3.68]
[1764549435146,0.4,129.63,129.57,8.41368667]
[1764549435147,8.41368667,129.63,129.57,8.41368667]
[1764549435463,8.41368667,129.63,129.58,0.67]
[1764549435750,26.9936857,129.66,129.6,8.41368667]
[1764549435751,8.41368667,129.66,129.6,8.41368667]
[1764549435932,0.6,129.75,129.65,8.41368667]
[1764549436127,8.41368667,129.68,129.66,3.68]
[1764549436345,8.41368667,129.69,129.66,3.68]
[1764549436545,8.41368667,129.72,129.66,12.09368667]
[1764549436726,26.97703097,129.74,129.66,12.09368667]
[1764549436727,8.41368667,129.74,129.68,8.41368667]
[1764549437046,8.41368667,129.74,129.69,8.41368667]
[1764549437219,8.30732173,129.75,129.67,0.67]
[1764549437424,8.30732173,129.75,129.68,3.68]
[1764549437425,8.41368667,129.7,129.68,3.68]
[1764549437657,0.4,129.74,129.65,0.67]
[1764549437658,16.308864,129.72,129.65,0.67]
[1764549437859,8.41368667,129.7,129.69,3.68]
[1764549438389,8.41368667,129.7,129.63,8.41368667]
[1764549438522,8.41368667,129.7,129.68,3.68]
[1764549438921,0.2,129.75,129.68,3.68]
[1764549438922,0.2,129.75,129.69,0.67]
[1764549439122,0.2,129.75,129.69,9.08368667]
[1764549439342,7.90716161,129.75,129.7,3.68]
[1764549439562,0.2,129.75,129.71,0.67]
[1764549439850,7.90714528,129.75,129.71,0.67]
[1764549440049,0.2,129.75,129.73,8.41368667]
[1764549440365,0.2,129.75,129.74,8.41368667]
[1764549440869,0.2,129.75,129.74,0.67]
[1764549441234,0.2,129.75,129.7,8.37958168]
[1764549441531,0.2,129.75,129.74,3.68]
[1764549442051,7.90726319,129.75,129.7,8.41368667]
[1764549442358,13.38880028,129.75,129.71,3.68]
[1764549442964,0.2,129.75,129.72,0.67]
[1764549443456,0.2,129.75,129.72,13.86038197]
[1764549443949,0.2,129.75,129.74,5.48153709]
[1764549444453,0.2,129.75,129.74,6.18153709]
[1764549444652,0.2,129.75,129.71,7.70940486]
[1764549444950,0.2,129.8,129.74,5.48153709]
[1764549445244,7.90424343,129.8,129.76,5.48153709]
[1764549445436,13.38578052,129.8,129.77,3.68]
[1764549445745,5.48153709,129.78,129.72,6.16153709]
[1764549445948,5.48153709,129.78,129.73,3.68]
[1764549446246,16.308864,129.79,129.73,3.68]
[1764549446448,16.908864,129.79,129.74,3.68]
[1764549446651,5.48153709,129.77,129.74,3.68]
[1764549446948,0.6,129.78,129.66,0.68]
[1764549447249,5.48153709,129.71,129.66,0.68]
[1764549447451,7.70594128,129.77,129.7,5.48153709]
[1764549447622,13.18747837,129.77,129.67,3.68]
[1764549447826,7.70594128,129.77,129.7,5.48153709]
[1764549448031,7.70594128,129.77,129.68,9.48994492]
[1764549448032,5.48153709,129.73,129.68,0.68]
[1764549448248,5.48153709,129.73,129.69,3.68]
[1764549448439,16.908864,129.76,129.67,5.48153709]
[1764549448440,5.48153709,129.72,129.7,3.68]
[1764549448748,5.48153709,129.71,129.63,7.71426367]
[1764549448949,5.48153709,129.71,129.61,5.48153709]
[1764549448950,5.48153709,129.66,129.61,5.48153709]
[1764549449138,5.48153709,129.66,129.62,3.68]
[1764549449453,5.48153709,129.67,129.62,9.16153709]
[1764549449670,35.58708731,129.68,129.62,9.16153709]
[1764549449872,35.58708731,129.68,129.63,5.48153709]
[1764549450166,16.308864,129.68,129.62,9.16153709]
[1764549450350,5.48153709,129.66,129.63,3.68]
[1764549450546,5.48153709,129.65,129.6,6.16153709]
[1764549450858,5.48153709,129.63,129.61,3.68]
[1764549451168,5.48153709,129.64,129.61,3.68]
[1764549451376,13.19540814,129.64,129.61,3.68]
[1764549451756,7.71387105,129.64,129.61,3.68]
[1764549451955,5.48153709,129.65,129.61,3.68]
[1764549452276,5.48153709,129.68,129.62,0.68]
[1764549452448,0.6,129.72,129.62,0.68]
[1764549452646,5.48153709,129.66,129.6,0.68]
[1764549452862,5.48153709,129.66,129.63,3.68]
[1764549453078,7.71366862,129.64,129.6,0.68]
[1764549453255,13.19520571,129.64,129.61,3.68]
[1764549453573,5.48153709,129.62,129.59,16.68]
[1764549453778,27.59784017,129.64,129.6,3.68]
[1764549453993,5.48153709,129.62,129.6,3.68]
[1764549454162,0.6,129.63,129.56,0.68]
[1764549454163,5.48153709,129.61,129.56,0.68]
[1764549454363,5.48153709,129.61,129.57,3.68]
[1764549454884,5.48153709,129.64,129.58,0.68]
[1764549455076,29.50375677,129.65,129.6,5.48153709]
[1764549455383,5.48153709,129.68,129.59,27.00789113]
[1764549455681,0.6,129.7,129.62,5.48153709]
[1764549455849,5.48153709,129.66,129.63,3.68]
[1764549456054,5.48153709,129.64,129.63,3.68]
[1764549456255,16.308864,129.65,129.63,3.68]
[1764549456564,8.60354326,129.64,129.59,8.60354326]
[1764549456875,8.60354326,129.6,129.59,3.68]
[1764549457076,7.71545405,129.61,129.59,3.68]
[1764549457483,8.60354326,129.6,129.59,3.68]
[1764549457851,27.60408918,129.61,129.59,3.68]
[1764549457852,8.60354326,129.61,129.59,3.68]
[1764549458681,8.60354326,129.61,129.54,7.81958418]
[1764549458682,8.60354326,129.6,129.54,0.1]
[1764549458855,0.6,129.6,129.55,3.68]
[1764549459053,52.12091756,129.62,129.55,3.68]
[1764549459054,8.60354326,129.56,129.55,3.68]
[1764549459255,8.60354326,129.56,129.54,0.1]
[1764549459256,16.32197487,129.56,129.54,0.1]
[1764549459460,8.60354326,129.55,129.54,3.78]
[1764549460056,9.20354326,129.55,129.54,3.78]
[1764549460277,25.51240726,129.55,129.54,3.78]
[1764549460980,16.908864,129.55,129.54,3.78]
[1764549461155,25.51240726,129.55,129.54,3.78]
[1764549461362,33.23143466,129.55,129.54,0.1]
[1764549461660,24.6278914,129.55,129.54,0.1]
[1764549461869,33.23143466,129.55,129.54,0.1]
[1764549462067,7.7190274,129.55,129.54,0.1]
[1764549462704,61.33894808,129.55,129.44,19.31300076]
[1764549462857,8.60354326,129.46,129.43,16.66]
[1764549463258,8.60354326,129.45,129.44,3.68]
[1764549463484,16.3285336,129.45,129.44,3.68]
[1764549463692,16.3285336,129.45,129.43,16.66]
[1764549463864,7.72499034,129.45,129.44,3.68]
[1764549464396,27.034183,129.47,129.44,3.68]
[1764549464561,27.634183,129.47,129.44,3.68]
[1764549464758,0.6,129.46,129.43,3.68]
[1764549464964,24.91240726,129.44,129.42,3.68]
[1764549465202,0.6,129.46,129.42,3.68]
[1764549465506,8.60354326,129.43,129.42,3.68]
[1764549465660,9.20354326,129.43,129.42,3.68]
[1764549466093,9.20354326,129.43,129.39,0.1]
[1764549466272,8.60354326,129.41,129.4,3.68]
[1764549466660,8.60354326,129.41,129.39,0.1]
[1764549466862,8.60354326,129.4,129.39,3.78]
[1764549467070,8.60354326,129.4,129.39,0.1]
[1764549467486,24.91240726,129.4,129.39,0.1]
[1764549467695,24.91240726,129.4,129.24,12.63939466]
[1764549467696,16.308864,129.35,129.28,17.11856025]
[1764549467997,27.04373357,129.42,129.33,8.60354326]
[1764549468161,8.60354326,129.39,129.34,8.60354326]
[1764549468361,8.60354326,129.39,129.35,3.68]
[1764549468583,8.60354326,129.36,129.34,3.68]
[1764549468784,8.80994492,129.4,129.34,3.68]
[1764549468785,16.33450576,129.35,129.34,3.68]
[1764549468965,7.7309625,129.35,129.34,3.68]
[1764549469403,16.33450576,129.35,129.29,9.28354326]
[1764549469704,8.60354326,129.33,129.32,3.68]
[1764549469865,8.60354326,129.33,129.28,7.83489663]
[1764549470066,8.60354326,129.33,129.29,4.36]
[1764549470266,8.60354326,129.32,129.29,3.68]
[1764549470464,43.86723276,129.35,129.29,3.68]
[1764549470780,27.06255315,129.33,129.29,3.68]
[1764549470988,8.60354326,129.32,129.29,3.68]
[1764549471691,7.73178822,129.34,129.29,3.68]
[1764549471912,16.308864,129.35,129.31,8.60354326]
[1764549472074,8.60354326,129.35,129.31,8.60354326]
[1764549472394,8.60354326,129.33,129.32,3.68]
[1764549472593,8.60354326,129.33,129.28,0.1]
[1764549472781,8.60354326,129.29,129.28,0.1]
[1764549472980,33.72235218,129.29,129.18,0.1]
[1764549473298,8.60354326,129.22,129.19,3.68]
[1764549473610,8.60354326,129.23,129.19,3.68]
[1764549473766,16.808864,129.32,129.22,8.60354326]
[1764549474077,8.60354326,129.29,129.24,8.60354326]
[1764549474274,8.60354326,129.29,129.2,0.68]
[1764549474275,8.60354326,129.29,129.21,16.308864]
[1764549474672,8.60354326,129.27,129.22,0.68]
[1764549474877,8.60354326,129.25,129.22,3.68]
[1764549475200,9.30994492,129.3,129.22,12.28354326]
[1764549475390,8.60354326,129.26,129.22,3.68]
[1764549475590,8.60354326,129.25,129.2,9.28354326]
[1764549475797,8.60354326,129.25,129.22,3.68]
[1764549476087,8.23335395,129.31,129.23,8.60354326]
[1764549476270,8.60354326,129.28,129.24,8.60354326]
[1764549476598,24.54221795,129.31,129.21,8.60354326]
[1764549476599,8.60354326,129.26,129.21,8.60354326]
[1764549476783,8.60354326,129.24,129.2,3.68]
[1764549477473,25.11880892,129.3,129.22,8.60354326]
[1764549477806,8.60354326,129.27,129.22,8.60354326]
[1764549478093,16.308864,129.27,129.22,8.60354326]
[1764549478267,8.60354326,129.26,129.2,3.68]
[1764549478467,8.60354326,129.26,129.2,4.4]
[1764549478694,8.60354326,129.25,129.21,8.60354326]
[1764549478902,16.34108581,129.24,129.2,4.4]
[1764549479197,8.60354326,129.26,129.21,9.32354326]
[1764549479977,16.808864,129.28,129.21,9.32354326]
[1764549480175,16.808864,129.28,129.2,3.68]
[1764549480176,9.30994492,129.27,129.2,3.68]
[1764549480382,8.60354326,129.23,129.21,3.68]
[1764549480683,25.61880892,129.27,129.18,0.1]
[1764549480684,9.10354326,129.22,129.18,0.1]
[1764549480998,27.06673883,129.31,129.21,8.60354326]
[1764549481293,38.65210356,129.36,129.3,8.60354326]
[1764549481294,8.60354326,129.36,129.3,8.60354326]
[1764549481594,8.60354326,129.35,129.31,12.28354326]
[1764549481785,27.05209459,129.38,129.34,8.60354326]
[1764549481988,27.05209459,129.38,129.32,0.72]
[1764549481989,7.72916988,129.38,129.32,0.72]
[1764549482177,7.72916988,129.38,129.35,8.60354326]
[1764549482371,4.0399302,129.39,129.32,0.72]
[1764549482572,11.7688012,129.39,129.36,8.60354326]
[1764549482779,11.7688012,129.39,129.38,8.60354326]
[1764549482974,20.37234446,129.39,129.37,3.68]
[1764549483298,4.0399302,129.39,129.37,3.68]
[1764549483474,4.0399302,129.39,129.38,3.68]
[1764549483669,11.76880585,129.39,129.31,27.06604216]
[1764549483901,20.37234911,129.39,129.32,3.68]
[1764549484204,4.0399302,129.39,129.33,3.68]
[1764549484502,4.0399302,129.39,129.35,8.60354326]
[1764549484711,4.0399302,129.39,129.33,8.60354326]
[1764549484712,8.60354326,129.38,129.33,8.60354326]
[1764549485023,8.60354326,129.38,129.33,3.68]
[1764549485024,7.73036487,129.36,129.33,3.68]
[1764549485185,8.60354326,129.34,129.3,3.68]
[1764549485374,8.80994492,129.35,129.3,3.68]
[1764549485576,16.53935051,129.38,129.31,0.72]
[1764549485807,8.60354326,129.33,129.32,3.68]
[1764549486306,8.80994492,129.32,129.29,3.68]
[1764549486495,8.60354326,129.32,129.28,3.68]
[1764549486704,0.5,129.33,129.28,12.28354326]
[1764549486877,8.80994492,129.38,129.31,8.60354326]
[1764549487077,4.0399302,129.39,129.37,8.60354326]
[1764549487377,4.0399302,129.39,129.37,3.68]
[1764549487590,4.0399302,129.39,129.37,12.28354326]
[1764549487895,17.91348818,129.38,129.34,3.68]
[1764549488083,8.60354326,129.36,129.34,3.68]
[1764549488281,8.60354326,129.37,129.34,3.68]
[1764549488479,8.60354326,129.36,129.34,3.68]
[1764549488881,16.33450576,129.35,129.29,7.73417818]
[1764549489094,7.7309625,129.35,129.32,8.60354326]
[1764549489295,8.60354326,129.33,129.28,8.60354326]
[1764549489503,27.05836876,129.35,129.3,8.60354326]
[1764549489805,35.66191202,129.35,129.31,8.60354326]
[1764549490015,27.05836876,129.35,129.31,8.60354326]
[1764549490216,8.60354326,129.35,129.3,8.60354326]
[1764549490382,9.91891585,129.35,129.3,9.91891585]
[1764549490583,9.91891585,129.31,129.25,0.72]
[1764549490890,7.73514851,129.28,129.25,3.68]
[1764549491216,8.80994492,129.29,129.23,9.91891585]
[1764549491382,9.91891585,129.36,129.28,9.91891585]
[1764549491579,9.91891585,129.36,129.26,3.68]
[1764549491779,9.91891585,129.36,129.32,9.91891585]
[1764549492203,9.91891585,129.36,129.3,0.72]
[1764549492393,9.91891585,129.36,129.3,3.68]
[1764549492394,9.91891585,129.34,129.3,3.68]
[1764549492597,9.91891585,129.34,129.15,75.0]
[1764549492598,9.91891585,129.32,129.19,67.79456612]
[1764549492796,8.80994492,129.36,129.31,9.91891585]
[1764549493106,9.91891585,129.36,129.31,3.68]
[1764549493408,9.91891585,129.36,129.28,19.33749616]
[1764549493409,9.91891585,129.34,129.32,3.68]
[1764549493604,9.91891585,129.34,129.3,13.59891585]
[1764549493802,8.80994492,129.38,129.33,9.91891585]
[1764549494028,4.0399302,129.39,129.31,17.028864]
[1764549494193,4.0399302,129.39,129.36,9.91891585]
[1764549494377,9.91891585,129.37,129.31,9.91891585]
[1764549494584,9.91891585,129.36,129.31,9.91891585]
[1764549494804,9.91891585,129.35,129.31,9.91891585]
[1764549494996,17.65047607,129.34,129.29,10.63891585]
[1764549495216,27.06046079,129.34,129.25,0.72]
[1764549495493,9.91891585,129.32,129.26,3.68]
[1764549495718,9.91891585,129.31,129.26,4.4]
[1764549495891,9.91891585,129.29,129.26,3.68]
[1764549496089,8.80994492,129.32,129.24,10.63891585]
[1764549496308,9.91891585,129.27,129.21,0.72]
[1764549496483,9.91891585,129.26,129.22,3.68]
[1764549496682,16.808864,129.31,129.23,9.91891585]
[1764549496907,17.65389376,129.29,129.24,9.91891585]
[1764549497397,0.5,129.36,129.28,9.91891585]
[1764549497606,9.91891585,129.35,129.3,9.91891585]
[1764549497809,4.5399302,129.39,129.25,0.72]
[1764549497810,9.91891585,129.38,129.33,9.91891585]
[1764549498085,9.91891585,129.36,129.32,3.68]
[1764549498314,8.80994492,129.37,129.3,0.72]
[1764549498599,9.91891585,129.34,129.31,3.68]
[1764549499107,9.91891585,129.34,129.28,0.72]
[1764549499108,8.23215804,129.33,129.28,3.68]
[1764549499421,9.91891585,129.31,129.28,3.68]
[1764549499785,9.91891585,129.3,129.25,0.72]
[1764549499992,8.80994492,129.32,129.26,3.68]
[1764549500189,9.91891585,129.29,129.26,3.68]
[1764549500408,9.91891585,129.3,129.26,3.68]
[1764549500712,9.91891585,129.31,129.26,3.68]
[1764549500889,9.91891585,129.31,129.26,13.59891585]
[1764549501087,17.65280998,129.31,129.27,0.72]
[1764549501291,9.91891585,129.3,129.26,3.68]
[1764549501504,7.73389413,129.31,129.26,3.68]
[1764549501696,9.91891585,129.33,129.27,0.72]
[1764549502019,9.91891585,129.32,129.28,3.68]
[1764549502388,9.91891585,129.32,129.24,8.45711857]
[1764549502389,9.91891585,129.31,129.24,8.45711857]
[1764549502609,9.91891585,129.27,129.23,7.73778358]
[1764549502811,9.91891585,129.26,129.22,3.68]
[1764549503316,9.91891585,129.26,129.22,4.4]
[1764549503510,27.56883216,129.3,129.22,4.4]
[1764549503692,9.91891585,129.27,129.22,14.31891585]
[1764549503892,9.91891585,129.26,129.22,4.4]
[1764549504220,9.91891585,129.25,129.22,3.68]
[1764549504607,9.91891585,129.23,129.18,0.1]
[1764549504793,0.5,129.24,129.18,0.1]
[1764549504991,17.65945304,129.19,129.18,0.1]
[1764549505388,8.80994492,129.18,129.12,0.1]
[1764549505718,18.72886077,129.13,129.12,0.1]
[1764549506016,18.72886077,129.13,129.04,0.68]
[1764549506017,8.80994492,129.12,129.04,0.68]
[1764549506207,9.91891585,129.07,129.01,8.4313371]
[1764549506408,9.91891585,129.05,129.02,3.68]
[1764549506717,0.3,129.11,129.02,4.36]
[1764549506922,9.91891585,129.08,129.03,10.59891585]
[1764549507215,17.66664963,129.07,129.03,0.68]
[1764549507514,7.74773378,129.07,129.01,9.91891585]
[1764549507718,17.66664963,129.07,129.02,13.59891585]
[1764549507920,9.91891585,129.03,128.94,19.38814178]
[1764549508128,16.308864,129.04,128.88,155.54272727]
[1764549508129,9.91891585,128.96,128.93,0.68]
[1764549508299,9.91891585,128.96,128.95,3.68]
[1764549508817,0.3,129.0,128.95,3.68]
[1764549509122,9.91891585,129.0,128.96,0.68]
[1764549509499,17.67025295,129.01,128.96,10.59891585]
[1764549509903,7.7513371,129.01,128.99,9.91891585]
[1764549510207,9.91891585,129.04,128.97,0.68]
[1764549510406,0.3,129.08,129.0,9.91891585]
[1764549510622,9.91891585,129.05,129.0,9.91891585]
[1764549510830,9.91891585,129.03,128.98,9.91891585]
[1764549511033,7.75164037,129.01,128.99,3.68]
[1764549511523,8.80994492,129.03,128.99,3.68]
[1764549511703,9.91891585,129.0,128.97,3.68]
[1764549511902,9.91891585,129.01,128.97,3.68]
[1764549512101,9.91891585,129.02,128.97,14.27891585]
[1764549512411,9.91891585,129.01,128.97,4.36]
[1764549512624,9.91891585,129.0,128.97,4.36]
[1764549512923,9.91891585,128.98,128.93,3.68]
[1764549513099,17.67446106,128.94,128.89,9.91891585]
[1764549513459,7.75434243,128.96,128.9,3.68]
[1764549513715,9.91891585,128.95,128.9,4.36]
[1764549513923,9.91891585,128.94,128.9,4.36]
[1764549514597,27.13822507,128.97,128.9,3.68]
[1764549514802,8.80994492,128.96,128.88,156.22272727]
[1764549515009,8.80994492,128.96,128.89,3.68]
[1764549515010,9.91891585,128.92,128.89,3.68]
[1764549515418,17.67571421,128.92,128.88,155.54272727]
[1764549515630,17.67571421,128.92,128.9,3.68]
[1764549515813,8.80994492,128.96,128.9,3.68]
[1764549516129,9.91891585,128.95,128.91,0.68]
[1764549516517,27.12967986,129.01,128.91,0.68]
[1764549516826,8.49920071,128.97,128.92,8.49920071]
[1764549517028,8.49920071,128.96,128.91,0.68]
[1764549517199,8.05020429,129.03,128.92,11.43632363]
[1764549517396,8.05020429,129.03,128.95,8.49920071]
[1764549517617,8.49920071,129.01,128.96,8.49920071]
[1764549517807,8.80994492,129.04,128.93,0.68]
[1764549518006,8.49920071,128.99,128.94,12.17920071]
[1764549518305,8.80994492,129.02,128.94,3.68]
[1764549518506,8.80994492,128.95,128.91,3.68]
[1764549518737,8.49920071,128.95,128.91,3.68]
[1764549519109,8.80994492,128.97,128.92,12.17920071]
[1764549519110,7.75374118,128.97,128.92,12.17920071]
[1764549519306,8.49920071,128.98,128.93,8.49920071]
[1764549519611,8.49920071,128.96,128.92,3.68]
[1764549519812,8.49920071,128.96,128.93,3.68]
[1764549520010,8.49920071,128.96,128.94,3.68]
[1764549520413,8.49920071,128.95,128.9,8.49920071]
[1764549520629,8.49920071,128.95,128.94,3.68]
[1764549520960,8.49920071,128.95,128.9,0.68]
[1764549521225,27.88772272,128.95,128.91,3.68]
[1764549521434,19.38852201,128.95,128.91,12.85920071]
[1764549521608,19.38852201,128.95,128.92,0.68]
[1764549521802,8.49920071,128.94,128.88,156.22272727]
[1764549522030,20.06852201,128.95,128.89,3.68]
[1764549522031,17.30914563,128.93,128.89,3.68]
[1764549522436,8.49920071,128.93,128.89,3.68]
[1764549522732,7.75434243,128.96,128.91,8.49920071]
[1764549523032,7.75434243,128.96,128.9,0.68]
[1764549523033,7.75434243,128.96,128.93,8.49920071]
[1764549523213,7.75375372,128.97,128.94,8.49920071]
[1764549523531,20.06090866,129.0,128.95,3.68]
[1764549523532,16.25234073,128.98,128.95,3.68]
[1764549523746,16.25234073,128.98,128.96,3.68]
[1764549524227,27.81599007,128.98,128.97,3.68]
[1764549524409,45.1251357,128.98,128.97,3.68]
[1764549524745,8.80994492,128.97,128.95,3.68]
[1764549524954,8.49920071,128.96,128.95,3.68]
[1764549525246,27.14230321,128.95,128.9,0.68]
[1764549525438,8.49920071,128.94,128.89,8.49920071]
[1764549525626,8.49920071,128.94,128.9,3.68]
[1764549525829,8.80994492,128.93,128.88,155.54272727]
[1764549526030,8.49920071,128.92,128.88,155.54272727]
[1764549526231,27.14230321,128.95,128.89,4.36]
[1764549526443,35.64150392,128.95,128.9,8.49920071]
[1764549526749,27.14230321,128.95,128.91,8.49920071]
[1764549526953,27.14230321,128.95,128.91,0.68]
[1764549527134,35.64150392,128.95,128.91,0.68]
[1764549527926,27.14230321,128.95,128.91,0.68]
[1764549528127,8.49920071,128.93,128.88,155.54272727]
[1764549528476,8.49920071,128.93,128.89,3.68]
[1764549528647,27.14230321,128.95,128.89,12.85920071]
[1764549528861,8.49920071,128.94,128.89,4.36]
[1764549529156,8.49920071,128.91,128.9,3.68]
[1764549529330,8.49920071,128.91,128.88,155.54272727]
[1764549529331,8.80994492,128.9,128.88,155.54272727]
[1764549529522,17.30914563,128.89,128.88,155.54272727]
[1764549529725,8.80994492,128.89,128.88,155.54272727]
[1764549529933,25.06769943,128.89,128.88,155.54272727]
[1764549530133,25.74769943,128.89,128.88,39.25437914]
[1764549530329,25.74769943,128.89,128.87,0.1]
[1764549530330,8.80994492,128.88,128.87,1e-08]
[1764549530530,17.98914563,128.88,128.87,1e-08]
[1764549530961,17.98914563,128.88,128.77,0.78]
[1764549531135,8.49920071,128.84,128.8,3.68]
[1764549531448,27.15493831,128.89,128.81,0.68]
[1764549531449,8.49920071,128.86,128.81,0.68]
[1764549531845,8.49920071,128.89,128.84,8.49920071]
[1764549532151,8.49920071,128.93,128.83,16.308864]
[1764549532334,5.55428067,128.9,128.84,3.68]
[1764549532537,5.55428067,128.87,128.85,3.68]
[1764549532857,5.55428067,128.86,128.83,0.68]
[1764549533055,5.55428067,128.85,128.84,3.68]
[1764549533558,8.80994492,128.84,128.8,3.68]
[1764549533740,14.36422559,128.81,128.8,3.68]
[1764549534059,22.12759799,128.81,128.8,3.68]
[1764549534283,22.12759799,128.81,128.79,4.47548663]
[1764549534284,17.25331732,128.81,128.79,4.47548663]
[1764549534435,8.4433724,128.81,128.79,4.47548663]
[1764549534632,7.7633724,128.81,128.79,5.15548663]
[1764549534835,5.55428067,128.88,128.79,5.15548663]
[1764549534836,8.43735008,128.91,128.8,6.23428067]
[1764549535030,7.75735008,128.91,128.8,0.68]
[1764549535250,5.55428067,128.89,128.84,5.55428067]
[1764549535459,5.55428067,128.87,128.85,3.68]
[1764549535658,0.68,128.9,128.79,10.0297673]